[Event "Early-Titled-Tuesday-Blitz-February-20-2024"]
[Site "Chess.com"]
[Date "2024.02.20"]
[Round "5"]
[White "Maftuna2303"]
[Black "pedro_nascimento85"]
[Result "0-1"]
[WhiteElo "2403"]
[BlackElo "2129"]
[TimeControl "180+1"]
[EndTime "8:56:39 PST"]
[Termination "pedro_nascimento85 won by resignation"]

1. e4 {[%clk 0:03:00.9]} 1... e6 {[%clk 0:02:59.7]} 2. d4 {[%clk 0:02:56.8]}
2... d5 {[%clk 0:02:59.5]} 3. Nd2 {[%clk 0:02:57]} 3... Nc6 {[%clk 0:02:58.6]}
4. c3 {[%clk 0:02:55.9]} 4... e5 {[%clk 0:02:57.8]} 5. exd5 {[%clk 0:02:52.9]}
5... Qxd5 {[%clk 0:02:58.7]} 6. Ngf3 {[%clk 0:02:48.8]} 6... exd4 {[%clk
0:02:58.6]} 7. Nb3 {[%clk 0:02:48.5]} 7... Qe4+ {[%clk 0:02:46.4]} 8. Be2 {[%clk
0:02:47.3]} 8... dxc3 {[%clk 0:02:46.2]} 9. O-O {[%clk 0:02:44.8]} 9... Be6
{[%clk 0:02:44.5]} 10. Re1 {[%clk 0:02:40.5]} 10... Rd8 {[%clk 0:02:31.4]} 11.
Bd2 {[%clk 0:01:52.3]} 11... cxd2 {[%clk 0:02:29.6]} 12. Nbxd2 {[%clk
0:01:50.7]} 12... Qb4 {[%clk 0:02:17.6]} 13. Qc2 {[%clk 0:01:47]} 13... Nf6
{[%clk 0:02:12.7]} 14. a3 {[%clk 0:01:46.5]} 14... Qb6 {[%clk 0:02:12]} 15. Nc4
{[%clk 0:01:41]} 15... Qc5 {[%clk 0:02:01.3]} 16. b4 {[%clk 0:01:38.4]} 16...
Nd4 {[%clk 0:01:42.8]} 17. Qa2 {[%clk 0:01:10.4]} 17... Nxe2+ {[%clk 0:01:36.8]}
18. Qxe2 {[%clk 0:01:09.8]} 18... Qh5 {[%clk 0:01:12.8]} 19. Nce5 {[%clk
0:01:02.5]} 19... Bd6 {[%clk 0:01:07.7]} 20. Qb5+ {[%clk 0:00:59.4]} 20... Nd7
{[%clk 0:00:54.3]} 21. h3 {[%clk 0:00:43.6]} 21... O-O {[%clk 0:00:48.5]} 22. g4
{[%clk 0:00:40.8]} 22... Qxh3 {[%clk 0:00:43.3]} 23. Ng5 {[%clk 0:00:35.7]}
23... Qh6 {[%clk 0:00:29.6]} 24. Nef3 {[%clk 0:00:31.4]} 24... Bxg4 {[%clk
0:00:22]} 25. Rad1 {[%clk 0:00:27.9]} 25... Nf6 {[%clk 0:00:16.6]} 26. Qxb7
{[%clk 0:00:22.9]} 26... Bxf3 {[%clk 0:00:16.3]} 27. Nxf3 {[%clk 0:00:22.1]}
27... Ng4 {[%clk 0:00:16.4]} 28. Qe4 {[%clk 0:00:19.9]} 28... Bh2+ {[%clk
0:00:14]} 29. Kg2 {[%clk 0:00:17.5]} 29... Nf6 {[%clk 0:00:12.6]} 30. Qf5 {[%clk
0:00:14.3]} 30... Bd6 {[%clk 0:00:12]} 31. Ng5 {[%clk 0:00:10.4]} 31... Qg6
{[%clk 0:00:12.4]} 32. Qa5 {[%clk 0:00:07.7]} 32... Bf4 {[%clk 0:00:10.4]} 33.
Rxd8 {[%clk 0:00:05.2]} 33... Rxd8 {[%clk 0:00:09.4]} 34. Kf3 {[%clk 0:00:06]}
34... Bxg5 {[%clk 0:00:08]} 35. Qb5 {[%clk 0:00:05.1]} 35... Rf8 {[%clk
0:00:07.7]} 36. Kg2 {[%clk 0:00:05.1]} 36... Bd2+ {[%clk 0:00:06.8]} 37. Kf1
{[%clk 0:00:05.7]} 37... Bxe1 {[%clk 0:00:07.3]} 38. Kxe1 {[%clk 0:00:06.4]}
38... Qb1+ {[%clk 0:00:07.7]} 39. Ke2 {[%clk 0:00:06.3]} 39... Qg6 {[%clk
0:00:08.5]} 40. Qc5 {[%clk 0:00:05.6]} 40... Qe4+ {[%clk 0:00:08.1]} 0-1

[Event "Early-Titled-Tuesday-Blitz-February-20-2024"]
[Site "Chess.com"]
[Date "2024.02.20"]
[Round "5"]
[White "Svet_1502"]
[Black "manipun1"]
[Result "1-0"]
[WhiteElo "2239"]
[BlackElo "2399"]
[TimeControl "180+1"]
[EndTime "8:56:44 PST"]
[Termination "Svet_1502 won on time"]

1. d4 {[%clk 0:02:58.3]} 1... d6 {[%clk 0:02:59.6]} 2. Nf3 {[%clk 0:02:56.7]}
2... g6 {[%clk 0:02:59.3]} 3. g3 {[%clk 0:02:56.8]} 3... Bg7 {[%clk 0:02:58.1]}
4. Bg2 {[%clk 0:02:57.4]} 4... Nf6 {[%clk 0:02:55.4]} 5. c4 {[%clk 0:02:57.3]}
5... O-O {[%clk 0:02:55]} 6. O-O {[%clk 0:02:57.1]} 6... Nc6 {[%clk 0:02:54.9]}
7. Nc3 {[%clk 0:02:55]} 7... Bf5 {[%clk 0:02:54.1]} 8. Nh4 {[%clk 0:02:37.9]}
8... Bd7 {[%clk 0:02:51.6]} 9. e4 {[%clk 0:02:34.2]} 9... e5 {[%clk 0:02:51.1]}
10. dxe5 {[%clk 0:02:26.4]} 10... Nxe5 {[%clk 0:02:29.7]} 11. Qe2 {[%clk
0:02:07.3]} 11... Re8 {[%clk 0:02:24.8]} 12. f4 {[%clk 0:01:50.1]} 12... Nc6
{[%clk 0:02:23.5]} 13. Be3 {[%clk 0:01:23.9]} 13... a6 {[%clk 0:01:51.6]} 14.
Rae1 {[%clk 0:01:14.3]} 14... Rb8 {[%clk 0:01:41.2]} 15. f5 {[%clk 0:00:49.6]}
15... Ne5 {[%clk 0:01:21.3]} 16. fxg6 {[%clk 0:00:36.2]} 16... hxg6 {[%clk
0:01:09.2]} 17. Bg5 {[%clk 0:00:33.3]} 17... Bc6 {[%clk 0:00:56.3]} 18. Nf3
{[%clk 0:00:18]} 18... b5 {[%clk 0:00:51.7]} 19. Nxe5 {[%clk 0:00:17.7]} 19...
Rxe5 {[%clk 0:00:51.3]} 20. Qd2 {[%clk 0:00:12.1]} 20... bxc4 {[%clk 0:00:45]}
21. Nd5 {[%clk 0:00:12.2]} 21... Bxd5 {[%clk 0:00:44.6]} 22. exd5 {[%clk
0:00:12.2]} 22... Qe7 {[%clk 0:00:39.4]} 23. Qf2 {[%clk 0:00:09.4]} 23... Rxe1
{[%clk 0:00:35.2]} 24. Rxe1 {[%clk 0:00:09.8]} 24... Qxe1+ {[%clk 0:00:16.9]}
25. Qxe1 {[%clk 0:00:09.7]} 25... Rxb2 {[%clk 0:00:17.8]} 26. Qe7 {[%clk
0:00:07.7]} 26... Ng4 {[%clk 0:00:14.9]} 27. Qd8+ {[%clk 0:00:06.8]} 27... Kh7
{[%clk 0:00:14.6]} 28. Qe7 {[%clk 0:00:03.4]} 28... Rb1+ {[%clk 0:00:14.5]} 29.
Bf1 {[%clk 0:00:03.8]} 29... Bd4+ {[%clk 0:00:13.5]} 30. Kg2 {[%clk 0:00:04.3]}
30... Rb2+ {[%clk 0:00:13.1]} 31. Kf3 {[%clk 0:00:03.2]} 31... Nxh2+ {[%clk
0:00:12.1]} 32. Ke4 {[%clk 0:00:02.7]} 32... Nxf1 {[%clk 0:00:10]} 33. Qxf7+
{[%clk 0:00:02.6]} 33... Bg7 {[%clk 0:00:09.3]} 34. Qxf1 {[%clk 0:00:01.9]}
34... c3 {[%clk 0:00:08.4]} 35. Ke3 {[%clk 0:00:02.2]} 35... c2 {[%clk
0:00:07.8]} 36. Qc1 {[%clk 0:00:02.9]} 36... Rxa2 {[%clk 0:00:07]} 37. Kd2
{[%clk 0:00:03]} 37... a5 {[%clk 0:00:05.9]} 38. Kd3 {[%clk 0:00:02.8]} 38... a4
{[%clk 0:00:05.5]} 39. Kc4 {[%clk 0:00:03.2]} 39... a3 {[%clk 0:00:05.2]} 40.
Kb3 {[%clk 0:00:03.3]} 40... Rb2+ {[%clk 0:00:05.5]} 41. Kxa3 {[%clk 0:00:01.5]}
41... Kg8 {[%clk 0:00:01]} 42. Qxb2 {[%clk 0:00:01.7]} 1-0

[Event "Early-Titled-Tuesday-Blitz-February-20-2024"]
[Site "Chess.com"]
[Date "2024.02.20"]
[Round "5"]
[White "ilqar_74"]
[Black "AnishOnYoutube"]
[Result "0-1"]
[WhiteElo "2843"]
[BlackElo "3013"]
[TimeControl "180+1"]
[EndTime "8:56:46 PST"]
[Termination "AnishOnYoutube won by resignation"]

1. e4 {[%clk 0:03:00.9]} 1... c5 {[%clk 0:03:00.1]} 2. Nf3 {[%clk 0:02:59.8]}
2... e6 {[%clk 0:03:00.8]} 3. d4 {[%clk 0:03:00.2]} 3... cxd4 {[%clk 0:03:01.6]}
4. Nxd4 {[%clk 0:03:01.1]} 4... Nc6 {[%clk 0:03:02.1]} 5. Nxc6 {[%clk
0:02:59.2]} 5... bxc6 {[%clk 0:03:02.2]} 6. Bd3 {[%clk 0:02:59.8]} 6... Qc7
{[%clk 0:03:01.8]} 7. O-O {[%clk 0:02:59.6]} 7... Nf6 {[%clk 0:03:02.5]} 8. Nc3
{[%clk 0:02:59.6]} 8... d5 {[%clk 0:03:02.8]} 9. Qf3 {[%clk 0:02:59.6]} 9... Bd6
{[%clk 0:02:40.6]} 10. h3 {[%clk 0:02:59]} 10... O-O {[%clk 0:02:40.3]} 11. Re1
{[%clk 0:02:56.6]} 11... Bh2+ {[%clk 0:02:36.6]} 12. Kh1 {[%clk 0:02:55.9]}
12... Be5 {[%clk 0:02:37.5]} 13. Bg5 {[%clk 0:02:54]} 13... h6 {[%clk
0:02:35.7]} 14. Bh4 {[%clk 0:02:49]} 14... Bd7 {[%clk 0:02:29.1]} 15. Rad1
{[%clk 0:02:41.7]} 15... Rab8 {[%clk 0:02:24.9]} 16. exd5 {[%clk 0:02:25]} 16...
cxd5 {[%clk 0:02:03.9]} 17. Rxe5 {[%clk 0:02:16.9]} 17... Qxe5 {[%clk
0:02:04.8]} 18. Bg3 {[%clk 0:02:15.4]} 18... Qh5 {[%clk 0:02:01.7]} 19. Qxh5
{[%clk 0:02:13]} 19... Nxh5 {[%clk 0:02:02.6]} 20. Bxb8 {[%clk 0:02:13.2]} 20...
Rxb8 {[%clk 0:02:03.5]} 21. b3 {[%clk 0:02:12.2]} 21... Nf4 {[%clk 0:01:55.9]}
22. Ne2 {[%clk 0:02:09.4]} 22... Nxd3 {[%clk 0:01:55.6]} 23. Rxd3 {[%clk
0:02:10.3]} 23... Bb5 {[%clk 0:01:50.5]} 24. Rd2 {[%clk 0:02:09.8]} 24... Bxe2
{[%clk 0:01:49.4]} 25. Rxe2 {[%clk 0:02:10.6]} 25... g5 {[%clk 0:01:42.7]} 26.
Kg1 {[%clk 0:02:08.4]} 26... Kf8 {[%clk 0:01:42.2]} 27. Kf1 {[%clk 0:02:05.2]}
27... Ke7 {[%clk 0:01:42.5]} 28. Ke1 {[%clk 0:02:05.8]} 28... Kd6 {[%clk
0:01:42.1]} 29. Kd2 {[%clk 0:02:06.5]} 29... e5 {[%clk 0:01:41.6]} 30. c3 {[%clk
0:02:03.9]} 30... f5 {[%clk 0:01:41.6]} 31. Kc2 {[%clk 0:02:04.5]} 31... h5
{[%clk 0:01:39.6]} 32. Rd2 {[%clk 0:02:04.1]} 32... h4 {[%clk 0:01:39.8]} 33. f3
{[%clk 0:02:01.4]} 33... a5 {[%clk 0:01:39.8]} 34. a3 {[%clk 0:02:00.9]} 34...
Rc8 {[%clk 0:01:39.5]} 35. b4 {[%clk 0:01:57.4]} 35... axb4 {[%clk 0:01:29.4]}
36. axb4 {[%clk 0:01:56.7]} 36... d4 {[%clk 0:01:25.8]} 37. Rd3 {[%clk
0:01:56.5]} 37... Kd5 {[%clk 0:01:23.6]} 38. Kb3 {[%clk 0:01:52.2]} 38... Rc4
{[%clk 0:01:05.2]} 39. cxd4 {[%clk 0:01:29.9]} 39... exd4 {[%clk 0:01:05.1]} 40.
Rd2 {[%clk 0:01:03.7]} 40... Rc3+ {[%clk 0:01:05.1]} 41. Kb2 {[%clk 0:00:58.9]}
41... Kc4 {[%clk 0:01:00.2]} 42. Re2 {[%clk 0:00:29]} 42... Re3 {[%clk
0:00:55.4]} 43. Rd2 {[%clk 0:00:26.4]} 43... Rb3+ {[%clk 0:00:54.5]} 44. Kc2
{[%clk 0:00:25.5]} 44... Rxb4 {[%clk 0:00:48.1]} 45. Rd1 {[%clk 0:00:24.9]}
45... Ra4 {[%clk 0:00:47.3]} 46. Kb2 {[%clk 0:00:23.9]} 46... d3 {[%clk
0:00:43.3]} 47. f4 {[%clk 0:00:18.1]} 47... Rb4+ {[%clk 0:00:31.1]} 48. Ka3
{[%clk 0:00:15.9]} 48... Rb3+ {[%clk 0:00:25.3]} 49. Ka4 {[%clk 0:00:14.8]}
49... gxf4 {[%clk 0:00:20.7]} 50. Rf1 {[%clk 0:00:15.1]} 50... Rb4+ {[%clk
0:00:16.2]} 51. Ka3 {[%clk 0:00:15]} 51... Kc3 {[%clk 0:00:13.3]} 52. Rf3 {[%clk
0:00:12]} 52... Rd4 {[%clk 0:00:11.8]} 53. Ka2 {[%clk 0:00:09.4]} 53... Kc2
{[%clk 0:00:12]} 54. Ka3 {[%clk 0:00:06.1]} 54... d2 {[%clk 0:00:11.9]} 0-1

[Event "Early-Titled-Tuesday-Blitz-February-20-2024"]
[Site "Chess.com"]
[Date "2024.02.20"]
[Round "5"]
[White "rhungaski"]
[Black "BardArtem"]
[Result "0-1"]
[WhiteElo "2573"]
[BlackElo "2778"]
[TimeControl "180+1"]
[EndTime "8:56:46 PST"]
[Termination "BardArtem won by checkmate"]

1. e4 {[%clk 0:03:00.9]} 1... e5 {[%clk 0:02:58.5]} 2. Nf3 {[%clk 0:03:00.9]}
2... Nc6 {[%clk 0:02:59]} 3. d4 {[%clk 0:03:01.3]} 3... exd4 {[%clk 0:02:58.9]}
4. Nxd4 {[%clk 0:03:02.2]} 4... Bb4+ {[%clk 0:02:59.1]} 5. c3 {[%clk 0:03:01]}
5... Bc5 {[%clk 0:02:59.2]} 6. Be3 {[%clk 0:02:59.9]} 6... Bb6 {[%clk
0:02:45.9]} 7. Nc2 {[%clk 0:02:56.9]} 7... Nf6 {[%clk 0:02:44.5]} 8. Nd2 {[%clk
0:02:35.9]} 8... O-O {[%clk 0:02:43.9]} 9. f4 {[%clk 0:02:10.8]} 9... Bxe3
{[%clk 0:02:35.7]} 10. Nxe3 {[%clk 0:02:10.5]} 10... Re8 {[%clk 0:02:36.2]} 11.
Qf3 {[%clk 0:02:03.4]} 11... d5 {[%clk 0:02:28.7]} 12. e5 {[%clk 0:01:59.8]}
12... d4 {[%clk 0:02:28.8]} 13. Nec4 {[%clk 0:01:26.1]} 13... dxc3 {[%clk
0:02:27.3]} 14. bxc3 {[%clk 0:01:26.8]} 14... Qd5 {[%clk 0:02:15]} 15. Be2
{[%clk 0:01:09.3]} 15... Qxf3 {[%clk 0:01:58.7]} 16. Bxf3 {[%clk 0:01:10.2]}
16... Be6 {[%clk 0:01:59.1]} 17. Ne3 {[%clk 0:01:07.5]} 17... Nd7 {[%clk
0:01:37.4]} 18. O-O {[%clk 0:00:47.5]} 18... Nc5 {[%clk 0:01:31.1]} 19. Ne4
{[%clk 0:00:35.6]} 19... Nxe4 {[%clk 0:01:25.6]} 20. Bxe4 {[%clk 0:00:36.5]}
20... Rad8 {[%clk 0:01:24]} 21. Bxc6 {[%clk 0:00:27.4]} 21... bxc6 {[%clk
0:01:23.8]} 22. Rfd1 {[%clk 0:00:28.3]} 22... Kf8 {[%clk 0:01:18.4]} 23. Kf2
{[%clk 0:00:27.8]} 23... Ke7 {[%clk 0:01:05.9]} 24. f5 {[%clk 0:00:24.3]} 24...
Bc8 {[%clk 0:00:46.2]} 25. Kf3 {[%clk 0:00:24.5]} 25... g6 {[%clk 0:00:35.1]}
26. g4 {[%clk 0:00:24.2]} 26... Ba6 {[%clk 0:00:31]} 27. Kf4 {[%clk 0:00:22.4]}
27... Rb8 {[%clk 0:00:19.5]} 28. Rd4 {[%clk 0:00:18.5]} 28... Kf8 {[%clk
0:00:16.8]} 29. Rd7 {[%clk 0:00:17.9]} 29... Rb5 {[%clk 0:00:16]} 30. e6 {[%clk
0:00:15.1]} 30... fxe6 {[%clk 0:00:16.1]} 31. f6 {[%clk 0:00:15]} 31... g5+
{[%clk 0:00:16.6]} 32. Kf3 {[%clk 0:00:12.9]} 32... Re5 {[%clk 0:00:11]} 33.
Rxh7 {[%clk 0:00:12.2]} 33... Bd3 {[%clk 0:00:09.1]} 34. Rxc7 {[%clk 0:00:11.3]}
34... a5 {[%clk 0:00:08.6]} 35. h4 {[%clk 0:00:10.7]} 35... gxh4 {[%clk
0:00:07.8]} 36. Rg1 {[%clk 0:00:11.2]} 36... h3 {[%clk 0:00:06.6]} 37. Nf1
{[%clk 0:00:05]} 37... Bxf1 {[%clk 0:00:04.3]} 38. Rxf1 {[%clk 0:00:04.5]} 38...
Rc5 {[%clk 0:00:04.8]} 39. Kg3 {[%clk 0:00:03.4]} 39... Rxc3+ {[%clk 0:00:05.1]}
40. Kh4 {[%clk 0:00:04.1]} 40... h2 {[%clk 0:00:03.3]} 41. Rh1 {[%clk
0:00:04.3]} 41... Rc2 {[%clk 0:00:04]} 42. Kg5 {[%clk 0:00:03.5]} 42... Rd8
{[%clk 0:00:02.9]} 43. Kg6 {[%clk 0:00:02.2]} 43... Rg2 {[%clk 0:00:03.5]} 44.
g5 {[%clk 0:00:02.3]} 44... Ke8 {[%clk 0:00:03.2]} 45. Rh7 {[%clk 0:00:02.6]}
45... Rd5 {[%clk 0:00:03.3]} 46. Rh8+ {[%clk 0:00:02.9]} 46... Kd7 {[%clk
0:00:03.8]} 47. f7 {[%clk 0:00:03.8]} 47... Rdxg5+ {[%clk 0:00:03.6]} 48. Kh7
{[%clk 0:00:04.2]} 48... Rh5# {[%clk 0:00:03.3]} 0-1

[Event "Early-Titled-Tuesday-Blitz-February-20-2024"]
[Site "Chess.com"]
[Date "2024.02.20"]
[Round "5"]
[White "snowlord"]
[Black "malakismayil"]
[Result "1-0"]
[WhiteElo "2880"]
[BlackElo "2526"]
[TimeControl "180+1"]
[EndTime "8:56:48 PST"]
[Termination "snowlord won by checkmate"]

1. e4 {[%clk 0:03:00.9]} 1... e5 {[%clk 0:02:56.3]} 2. Bc4 {[%clk 0:03:00]} 2...
Nc6 {[%clk 0:02:53.7]} 3. Nc3 {[%clk 0:02:58.9]} 3... Nf6 {[%clk 0:02:52.5]} 4.
d3 {[%clk 0:02:59.3]} 4... Bc5 {[%clk 0:02:52.1]} 5. Na4 {[%clk 0:02:56.4]} 5...
Be7 {[%clk 0:02:50.2]} 6. Nf3 {[%clk 0:02:55.4]} 6... d6 {[%clk 0:02:43.3]} 7.
a3 {[%clk 0:02:53.2]} 7... O-O {[%clk 0:02:41.3]} 8. O-O {[%clk 0:02:53]} 8...
Bg4 {[%clk 0:02:39.7]} 9. Be3 {[%clk 0:02:49.8]} 9... Nd4 {[%clk 0:01:53.2]} 10.
Bxd4 {[%clk 0:02:48.5]} 10... exd4 {[%clk 0:01:54.1]} 11. b4 {[%clk 0:02:42.5]}
11... Nd7 {[%clk 0:01:47]} 12. h3 {[%clk 0:02:38.1]} 12... Bxf3 {[%clk
0:01:27.5]} 13. Qxf3 {[%clk 0:02:39]} 13... Ne5 {[%clk 0:01:27.5]} 14. Qe2
{[%clk 0:02:38.1]} 14... Nxc4 {[%clk 0:01:05.5]} 15. dxc4 {[%clk 0:02:38.1]}
15... c5 {[%clk 0:00:55.5]} 16. bxc5 {[%clk 0:02:21.3]} 16... dxc5 {[%clk
0:00:56.4]} 17. Nb2 {[%clk 0:02:20.2]} 17... b6 {[%clk 0:00:53.7]} 18. a4 {[%clk
0:02:16.6]} 18... Bd6 {[%clk 0:00:48.7]} 19. f4 {[%clk 0:01:38.7]} 19... Re8
{[%clk 0:00:47.1]} 20. Qf3 {[%clk 0:01:39.2]} 20... Bc7 {[%clk 0:00:44.7]} 21.
Nd3 {[%clk 0:01:35.3]} 21... f6 {[%clk 0:00:41.1]} 22. a5 {[%clk 0:01:07]} 22...
bxa5 {[%clk 0:00:28.4]} 23. Nxc5 {[%clk 0:01:06.6]} 23... Bb6 {[%clk 0:00:28.6]}
24. Nd3 {[%clk 0:01:06.2]} 24... Qc7 {[%clk 0:00:27.6]} 25. c5 {[%clk
0:00:57.5]} 25... Bxc5 {[%clk 0:00:26.6]} 26. e5 {[%clk 0:00:58.3]} 26... Bb6
{[%clk 0:00:07.7]} 27. Rf2 {[%clk 0:00:40.5]} 27... f5 {[%clk 0:00:07]} 28. g4
{[%clk 0:00:36.7]} 28... Qd7 {[%clk 0:00:05.6]} 29. Rg2 {[%clk 0:00:37.1]} 29...
Rac8 {[%clk 0:00:05.2]} 30. Kh2 {[%clk 0:00:18.4]} 30... Rc7 {[%clk 0:00:05.6]}
31. Rag1 {[%clk 0:00:18.9]} 31... Rec8 {[%clk 0:00:04.3]} 32. Qg3 {[%clk
0:00:10.4]} 32... Rxc2 {[%clk 0:00:04]} 33. gxf5 {[%clk 0:00:10.6]} 33... Rxg2+
{[%clk 0:00:04.2]} 34. Rxg2 {[%clk 0:00:11.2]} 34... Rc7 {[%clk 0:00:04.7]} 35.
f6 {[%clk 0:00:11.4]} 35... g6 {[%clk 0:00:04.8]} 36. Qg5 {[%clk 0:00:09.5]}
36... Qf7 {[%clk 0:00:03.3]} 37. f5 {[%clk 0:00:09.3]} 37... Rc3 {[%clk
0:00:03.1]} 38. e6 {[%clk 0:00:09.1]} 38... Qf8 {[%clk 0:00:03]} 39. f7+ {[%clk
0:00:09]} 39... Kg7 {[%clk 0:00:02.8]} 40. f6+ {[%clk 0:00:09.1]} 40... Kh8
{[%clk 0:00:03.3]} 41. Qd5 {[%clk 0:00:04.7]} 41... Rxd3 {[%clk 0:00:02.3]} 42.
e7 {[%clk 0:00:05.3]} 42... Qb8+ {[%clk 0:00:02.8]} 43. Kh1 {[%clk 0:00:04.8]}
43... Rd1+ {[%clk 0:00:03.5]} 44. Rg1 {[%clk 0:00:05.2]} 44... Rxg1+ {[%clk
0:00:04]} 45. Kxg1 {[%clk 0:00:06.1]} 45... Qg3+ {[%clk 0:00:04.1]} 46. Qg2
{[%clk 0:00:05.3]} 46... Qe1+ {[%clk 0:00:03.8]} 47. Qf1 {[%clk 0:00:05.3]}
47... d3+ {[%clk 0:00:03.3]} 48. Kg2 {[%clk 0:00:05.9]} 48... Qe4+ {[%clk
0:00:03.9]} 49. Qf3 {[%clk 0:00:06.6]} 49... Qxf3+ {[%clk 0:00:03.5]} 50. Kxf3
{[%clk 0:00:07.5]} 50... d2 {[%clk 0:00:04.1]} 51. f8=Q# {[%clk 0:00:07.9]} 1-0

[Event "Early-Titled-Tuesday-Blitz-February-20-2024"]
[Site "Chess.com"]
[Date "2024.02.20"]
[Round "5"]
[White "JonaszBaum"]
[Black "Grandelicious"]
[Result "0-1"]
[WhiteElo "2683"]
[BlackElo "2895"]
[TimeControl "180+1"]
[EndTime "8:56:49 PST"]
[Termination "Grandelicious won by resignation"]

1. Nf3 {[%clk 0:03:00.9]} 1... d6 {[%clk 0:02:56.3]} 2. d4 {[%clk 0:03:00.6]}
2... Nf6 {[%clk 0:02:54.9]} 3. c4 {[%clk 0:03:00.4]} 3... g6 {[%clk 0:02:54.5]}
4. Nc3 {[%clk 0:03:00.4]} 4... Bg7 {[%clk 0:02:55.3]} 5. g3 {[%clk 0:02:57.7]}
5... O-O {[%clk 0:02:53.6]} 6. Bg2 {[%clk 0:02:58.3]} 6... c6 {[%clk 0:02:54.3]}
7. O-O {[%clk 0:02:58.2]} 7... Nbd7 {[%clk 0:02:55]} 8. Qc2 {[%clk 0:02:57.5]}
8... Nb6 {[%clk 0:02:52.3]} 9. b3 {[%clk 0:02:53.7]} 9... d5 {[%clk 0:02:52.7]}
10. c5 {[%clk 0:02:31]} 10... Bf5 {[%clk 0:02:52.9]} 11. Qb2 {[%clk 0:02:31.1]}
11... Nbd7 {[%clk 0:02:52.9]} 12. b4 {[%clk 0:02:29.9]} 12... Ne4 {[%clk
0:02:50.9]} 13. Bf4 {[%clk 0:02:27.3]} 13... b6 {[%clk 0:02:42.5]} 14. Nxe4
{[%clk 0:02:09.3]} 14... Bxe4 {[%clk 0:02:38.8]} 15. Ne5 {[%clk 0:02:04.3]}
15... Nxe5 {[%clk 0:02:35.6]} 16. Bxe5 {[%clk 0:02:02.4]} 16... Bxe5 {[%clk
0:02:35.4]} 17. dxe5 {[%clk 0:02:01.8]} 17... Bxg2 {[%clk 0:02:35.6]} 18. Kxg2
{[%clk 0:02:02.4]} 18... bxc5 {[%clk 0:02:36.1]} 19. bxc5 {[%clk 0:02:03.1]}
19... Rb8 {[%clk 0:02:35.4]} 20. Qd4 {[%clk 0:02:02.2]} 20... Qa5 {[%clk
0:02:32.7]} 21. a4 {[%clk 0:01:44.3]} 21... Qb4 {[%clk 0:02:22.8]} 22. Qxb4
{[%clk 0:01:36.6]} 22... Rxb4 {[%clk 0:02:23.7]} 23. Rab1 {[%clk 0:01:37.2]}
23... Rfb8 {[%clk 0:02:23.2]} 24. Rxb4 {[%clk 0:01:30.9]} 24... Rxb4 {[%clk
0:02:24.1]} 25. Ra1 {[%clk 0:01:18.8]} 25... Kf8 {[%clk 0:02:20.3]} 26. e3
{[%clk 0:01:17.6]} 26... Ke8 {[%clk 0:02:20.2]} 27. a5 {[%clk 0:01:08.9]} 27...
Kd7 {[%clk 0:02:15.3]} 28. a6 {[%clk 0:01:07.6]} 28... Kc7 {[%clk 0:02:10]} 29.
f4 {[%clk 0:01:04.9]} 29... Rb5 {[%clk 0:02:09]} 30. Kf3 {[%clk 0:00:57.7]}
30... Rxc5 {[%clk 0:02:09.1]} 31. h4 {[%clk 0:00:47.9]} 31... h5 {[%clk
0:02:08.6]} 32. g4 {[%clk 0:00:47.4]} 32... hxg4+ {[%clk 0:02:09.5]} 33. Kxg4
{[%clk 0:00:48.3]} 33... Kb6 {[%clk 0:02:04.5]} 34. e6 {[%clk 0:00:48]} 34...
fxe6 {[%clk 0:01:59]} 35. Kg5 {[%clk 0:00:47.8]} 35... Rc3 {[%clk 0:01:59.4]}
36. Re1 {[%clk 0:00:45.7]} 36... e5 {[%clk 0:01:35.9]} 37. Kxg6 {[%clk
0:00:35.2]} 37... exf4 {[%clk 0:01:26.6]} 38. exf4 {[%clk 0:00:36.1]} 38... Rg3+
{[%clk 0:01:25.9]} 39. Kf5 {[%clk 0:00:32.8]} 39... c5 {[%clk 0:01:23.6]} 40.
Re6+ {[%clk 0:00:31.4]} 40... Kb5 {[%clk 0:01:22.9]} 41. Rxe7 {[%clk 0:00:30.7]}
41... d4 {[%clk 0:01:20.6]} 42. Rxa7 {[%clk 0:00:28.8]} 42... d3 {[%clk
0:01:19.6]} 43. h5 {[%clk 0:00:27]} 43... c4 {[%clk 0:01:16.1]} 44. h6 {[%clk
0:00:26.7]} 44... d2 {[%clk 0:01:14.6]} 45. Rd7 {[%clk 0:00:24.5]} 45... Rd3
{[%clk 0:00:57]} 46. Rxd3 {[%clk 0:00:12]} 46... cxd3 {[%clk 0:00:57.9]} 47. a7
{[%clk 0:00:12.6]} 47... d1=Q {[%clk 0:00:57.8]} 48. a8=Q {[%clk 0:00:13.2]}
48... Qh5+ {[%clk 0:00:58.5]} 49. Kf6 {[%clk 0:00:07]} 49... Qxh6+ {[%clk
0:00:58.4]} 50. Ke5 {[%clk 0:00:07.6]} 50... Qc6 {[%clk 0:00:49]} 51. Qb8+
{[%clk 0:00:05.7]} 51... Kc4 {[%clk 0:00:49]} 52. Qd8 {[%clk 0:00:03.8]} 52...
Kc3 {[%clk 0:00:44]} 53. f5 {[%clk 0:00:02.6]} 53... d2 {[%clk 0:00:30.1]} 54.
Qd4+ {[%clk 0:00:02.4]} 54... Kc2 {[%clk 0:00:29.3]} 55. f6 {[%clk 0:00:03.3]}
55... d1=Q {[%clk 0:00:17.2]} 56. Qxd1+ {[%clk 0:00:03.2]} 56... Kxd1 {[%clk
0:00:18.1]} 57. Kf5 {[%clk 0:00:03.2]} 57... Qe8 {[%clk 0:00:17.3]} 0-1